[Event "XX Sant Marti Open 2018"]
[Site "Sant Marti"]
[Date "2018.07.13"]
[Round "1"]
[White "Quesada Perez, Yasser"]
[Black "Borrellas Comellas, Josep"]
[Result "1-0"]
[ECO "C48"]
[WhiteElo "2531"]
[BlackElo "2080"]
[Annotator "ChessBase"]
[PlyCount "83"]
[EventDate "2018.07.13"]
[EventType "swiss"]
[EventCountry "ESP"]
[SourceTitle "playchess.com"]
[Source "ChessBase"]
[SourceQuality "1"]
[TimeControl "5400+30"]

1. e4 {[%emt 0:00:00]} e5 {[%emt 0:18:42]} 2. Nf3 {[%emt 0:00:00]} Nc6 {[%emt 0:00:15]} 3. Nc3 {[%emt 0:00:00]} Nf6 {[%emt 0:00:12]} 4. Bb5 {[%emt 0:00:02]} d6 {[%emt 0:01:12]} 5. d4 {[%emt 0:00:15]} exd4 {[%emt 0:00:10]} 6. Nxd4 {[%emt 0:00:07]} Bd7 {[%emt 0:00:09]} 7. O-O {[%emt 0:02:51]} Be7 {[%emt 0:01:22]} 8. Bxc6 {[%emt 0:00:57]} bxc6 {[%emt 0:00:49]} 9. Qf3 {[%emt 0:00:07]} c5 {[%emt 0:01:21]} 10. Nf5 {[%emt 0:00:07]} Bxf5 {[%emt 0:00:30]} 11. exf5 {[%emt 0:03:19]} O-O {[%emt 0:01:06]} 12. Bg5 {[%emt 0:09:52]} h6 {[%emt 0:04:20]} 13. Bh4 {[%emt 0:03:57]} Nd7 {[%emt 0:04:52]} 14. Bxe7 {[%emt 0:00:18]} Qxe7 {[%emt 0:00:04]} 15. Nd5 {[%emt 0:00:47]} Qd8 {[%emt 0:00:52]} 16. Rfe1 {[%emt 0:00:48]} Nf6 {[%emt 0:06:11]} 17. Ne7+ {[%emt 0:04:47]} Kh8 {[%emt 0:00:39]} 18. Re3 {[%emt 0:10:01]} Re8 {[%emt 0:06:10]} 19. Rae1 {[%emt 0:00:11]} Qd7 {[%emt 0:01:24]} 20. g4 {[%emt 0:01:27]} Ng8 {[%emt 0:08:07]} 21. Qd5 {[%emt 0:16:03]} Rf8 {[%emt 0:06:05]} 22. g5 {[%emt 0:08:36]} hxg5 {[%emt 0:04:54]} 23. Rh3+ {[%emt 0:00:39]} Nh6 {[%emt 0:00:37]} 24. Qg2 {[%emt 0:02:45]} f6 {[%emt 0:08:48]} 25. Ng6+ {[%emt 0:00:20]} Kh7 {[%emt 0:00:42]} 26. Nxf8+ {[%emt 0:01:57]} Rxf8 {[%emt 0:00:16]} 27. Qe4 {[%emt 0:00:00]} Rf7 {[%emt 0:03:30]} 28. Qe8 {[%emt 0:05:17]} g4 {[%emt 0:07:39]} 29. Qxd7 {[%emt 0:01:13]} Rxd7 {[%emt 0:00:15]} 30. Ra3 {[%emt 0:00:42]} Nxf5 {[%emt 0:01:19]} 31. Rxa7 {[%emt 0:03:06]} Nd4 {[%emt 0:00:23]} 32. Rd1 {[%emt 0:00:07]} Nxc2 {[%emt 0:00:39]} 33. a4 {[%emt 0:00:03]} Nb4 {[%emt 0:01:39]} 34. a5 {[%emt 0:00:05]} Nc6 {[%emt 0:00:45]} 35. Ra8 {[%emt 0:06:01]} Nd4 {[%emt 0:01:12]} 36. a6 {[%emt 0:02:27]} c6 {[%emt 0:00:33]} 37. Ra1 {[%emt 0:01:32]} Nb5 {[%emt 0:02:12]} 38. Rb8 {[%emt 0:00:07]} Ra7 {[%emt 0:01:18]} 39. Rb6 {[%emt 0:00:11]} Nd4 {[%emt 0:00:28]} 40. Rb7 {[%emt 0:00:36]} Nb5 {[%emt 0:00:14]} 41. Rxa7 {[%emt 0:00:11]} Nxa7 {[%emt 0:00:02]} 42. Re1 {[%emt 0:00:08]} 1-0

[Event "XX Sant Marti Open 2018"]
[Site "Sant Marti"]
[Date "2018.07.13"]
[Round "1"]
[White "Cuartas, Jaime Alexander"]
[Black "Gomez Barrera, Javiera Belen"]
[Result "1-0"]
[ECO "A48"]
[WhiteElo "2508"]
[BlackElo "2063"]
[Annotator "ChessBase"]
[PlyCount "91"]
[EventDate "2018.07.13"]
[EventType "swiss"]
[EventCountry "ESP"]
[SourceTitle "playchess.com"]
[Source "ChessBase"]
[SourceQuality "1"]
[TimeControl "5400+30"]

1. Nf3 {[%emt 0:01:30]} Nf6 {[%emt 0:00:00]} 2. d4 {[%emt 0:00:09]} g6 {[%emt 0:00:00]} 3. Nc3 {[%emt 0:00:04]} d5 {[%emt 0:00:22]} 4. Bf4 {[%emt 0:00:05]} Bg7 {[%emt 0:02:08]} 5. Nb5 {[%emt 0:00:42]} Na6 {[%emt 0:11:00]} 6. e3 {[%emt 0:00:13]} c6 {[%emt 0:07:32]} 7. Nc3 {[%emt 0:00:11]} Nc7 {[%emt 0:03:51]} 8. h3 {[%emt 0:00:21]} O-O {[%emt 0:03:01]} 9. Be2 {[%emt 0:00:56]} Re8 {[%emt 0:10:47]} 10. O-O {[%emt 0:00:15]} b6 {[%emt 0:09:11]} 11. b4 {[%emt 0:11:31]} Bb7 {[%emt 0:08:32]} 12. Rb1 {[%emt 0:00:14]} Ne4 {[%emt 0:05:21]} 13. Qe1 {[%emt 0:00:24]} Nd6 {[%emt 0:05:15]} 14. a4 {[%emt 0:00:29]} f6 {[%emt 0:04:55]} 15. e4 {[%emt 0:07:19]} e5 {[%emt 0:06:51]} 16. dxe5 {[%emt 0:01:44]} fxe5 {[%emt 0:00:58]} 17. Bg5 {[%emt 0:00:54]} Bf6 {[%emt 0:01:59]} 18. Bxf6 {[%emt 0:09:28]} Qxf6 {[%emt 0:00:08]} 19. Bd3 {[%emt 0:00:04]} d4 {[%emt 0:03:20]} 20. Ne2 {[%emt 0:00:08]} Ne6 {[%emt 0:07:12]} 21. Nd2 {[%emt 0:09:11]} c5 {[%emt 0:06:16]} 22. f3 {[%emt 0:01:35]} Rac8 {[%emt 0:01:03]} 23. Nc4 {[%emt 0:00:31]} Nxc4 {[%emt 0:00:59]} 24. Bxc4 {[%emt 0:00:04]} Kg7 {[%emt 0:00:42]} 25. b5 {[%emt 0:01:55]} Rcd8 {[%emt 0:00:31]} 26. a5 {[%emt 0:00:18]} Bc8 {[%emt 0:00:30]} 27. axb6 {[%emt 0:00:39]} axb6 {[%emt 0:00:01]} 28. Ra1 {[%emt 0:00:06]} Nf4 {[%emt 0:00:59]} 29. Ra7+ {[%emt 0:03:39]} Rd7 {[%emt 0:00:09]} 30. Ra8 {[%emt 0:00:27]} Rde7 {[%emt 0:00:23]} 31. Nxf4 {[%emt 0:01:37]} Qxf4 {[%emt 0:00:15]} 32. Qe2 {[%emt 0:04:21]} Qg5 {[%emt 0:01:16]} 33. Ra3 {[%emt 0:01:23]} h5 {[%emt 0:00:29]} 34. Kh1 {[%emt 0:05:53]} h4 {[%emt 0:00:23]} 35. Rfa1 {[%emt 0:00:05]} Be6 {[%emt 0:00:37]} 36. Ra6 {[%emt 0:00:31]} Bxc4 {[%emt 0:00:29]} 37. Qxc4 {[%emt 0:00:06]} Rb8 {[%emt 0:00:33]} 38. Qd5 {[%emt 0:01:52]} Qf6 {[%emt 0:00:25]} 39. Kg1 {[%emt 0:04:22]} Qe6 {[%emt 0:00:34]} 40. Qxe6 {[%emt 0:06:06]} Rxe6 {[%emt 0:00:01]} 41. Ra7+ {[%emt 0:00:05]} Kf6 {[%emt 0:00:37]} 42. Rh7 {[%emt 0:00:08]} Kg5 {[%emt 0:00:52]} 43. Raa7 {[%emt 0:00:12]} Rd8 {[%emt 0:00:30]} 44. Kf2 {[%emt 0:00:19]} Rf6 {[%emt 0:00:30]} 45. g3 {[%emt 0:00:21]} d3 {[%emt 0:00:29]} 46. f4+ {[%emt 0:00:21]} 1-0

[Event "XX Sant Marti Open 2018"]
[Site "Sant Marti"]
[Date "2018.07.13"]
[Round "1"]
[White "Pena Gomez, Manuel"]
[Black "Anustoop Biswas"]
[Result "1/2-1/2"]
[ECO "A00"]
[WhiteElo "2475"]
[BlackElo "2052"]
[Annotator "RC"]
[PlyCount "90"]
[EventDate "2018.07.13"]
[EventType "swiss"]
[EventCountry "ESP"]
[SourceTitle "playchess.com"]
[Source "ChessBase"]
[SourceQuality "1"]
[TimeControl "5400+30"]

1. g3 {[%emt 0:00:00]} d5 {[%emt 0:00:34]} 2. Bg2 {[%emt 0:00:00]} Nf6 {[%emt 0:01:54]} 3. c4 {[%emt 0:00:00]} c6 {[%emt 0:01:12]} 4. Nf3 {[%emt 0:00:00]} dxc4 {[%emt 0:00:39]} 5. O-O {[%emt 0:00:02]} Nbd7 {[%emt 0:00:20]} 6. a4 {[%emt 0:01:34]} a5 {[%emt 0:04:13]} 7. b3 {[%emt 0:08:28]} cxb3 {[%emt 0:00:56]} 8. Qxb3 {[%emt 0:00:03]} e6 {[%emt 0:00:15]} 9. d4 {[%emt 0:00:34]} Be7 {[%emt 0:00:39]} 10. Nbd2 {[%emt 0:04:27]} O-O {[%emt 0:02:10]} 11. Nc4 {[%emt 0:02:02]} Nd5 {[%emt 0:03:49]} 12. Bd2 {[%emt 0:01:14]} b6 {[%emt 0:02:40]} 13. Rfc1 {[%emt 0:00:47]} Nb8 14. Nfe5 {[%emt 0:02:18]} Ba6 {[%emt 0:10:24]} 15. Rab1 {[%emt 0:28:35]} Bb4 {[%emt 0:11:34]} 16. Bxb4 {[%emt 0:10:24]} Nxb4 {[%emt 0:00:03]} 17. Nd3 {[%emt 0:00:56]} Qxd4 {[%emt 0:02:42]} 18. Nxb4 {[%emt 0:00:38]} axb4 {[%emt 0:00:03]} 19. Qxb4 {[%emt 0:03:35]} b5 {[%emt 0:00:42]} 20. e3 {[%emt 0:01:44]} Qa7 {[%emt 0:01:54]} 21. axb5 {[%emt 0:00:47]} Bxb5 {[%emt 0:00:06]} 22. Nd6 {[%emt 0:00:06]} Bd3 {[%emt 0:02:47]} 23. Rb3 {[%emt 0:03:42]} Bg6 {[%emt 0:00:15]} 24. h4 {[%emt 0:02:06]} h6 {[%emt 0:03:23]} 25. Bf3 {[%emt 0:04:14]} Qa5 {[%emt 0:01:52]} 26. Kg2 {[%emt 0:08:02]} Nd7 {[%emt 0:07:07]} 27. Bxc6 {[%emt 0:04:04]} Qxb4 {[%emt 0:00:14]} 28. Rxb4 {[%emt 0:00:01]} Ra6 {[%emt 0:00:01]} 29. Rd4 {[%emt 0:02:27]} Ne5 {[%emt 0:00:23]} 30. Bb7 {[%emt 0:00:12]} Ra2 {[%emt 0:00:15]} 31. Nc8 {[%emt 0:06:05]} Kh7 {[%emt 0:01:34]} 32. Ne7 {[%emt 0:00:33]} Bh5 {[%emt 0:01:34]} 33. Rc5 {[%emt 0:02:22]} f6 {[%emt 0:00:02]} 34. Be4+ {[%emt 0:00:36]} Kh8 {[%emt 0:00:56]} 35. Rd6 {[%emt 0:01:38]} Bf7 {[%emt 0:02:21]} 36. Rc2 {[%emt 0:01:27]} Rxc2 {[%emt 0:00:22]} 37. Bxc2 {[%emt 0:00:01]} Re8 {[%emt 0:00:30]} 38. Nc6 {[%emt 0:00:53]} Nxc6 {[%emt 0:00:03]} 39. Rxc6 {[%emt 0:00:05]} e5 {[%emt 0:00:04]} 40. Rc5 {[%emt 0:00:14]} Rd8 {[%emt 0:00:10]} 41. Be4 {[%emt 0:00:17]} Kg8 {[%emt 0:00:12]} 42. g4 {[%emt 0:00:28]} Be6 {[%emt 0:00:10]} 43. g5 {[%emt 0:00:54]} hxg5 {[%emt 0:00:33]} 44. hxg5 {[%emt 0:00:02]} Kf7 {[%emt 0:00:29]} 45. Kg3 {[%emt 0:00:22]} Rd1 {[%emt 0:00:56]} 1/2-1/2

[Event "XX Sant Marti Open 2018"]
[Site "Sant Marti"]
[Date "2018.07.13"]
[Round "1"]
[White "Jaeel Atharva"]
[Black "Krysa, Leandro"]
[Result "0-1"]
[ECO "D41"]
[WhiteElo "2083"]
[BlackElo "2533"]
[Annotator "ChessBase"]
[PlyCount "66"]
[EventDate "2018.07.13"]
[EventType "swiss"]
[EventCountry "ESP"]
[SourceTitle "playchess.com"]
[Source "ChessBase"]
[SourceQuality "1"]
[TimeControl "5400+30"]

1. d4 {[%emt 0:07:28]} Nf6 {[%emt 0:00:00]} 2. c4 {[%emt 0:00:15]} e6 {[%emt 0:00:00]} 3. Nf3 {[%emt 0:00:08]} d5 {[%emt 0:00:10]} 4. Nc3 {[%emt 0:00:11]} c5 {[%emt 0:00:23]} 5. cxd5 {[%emt 0:00:08]} Nxd5 {[%emt 0:00:08]} 6. e4 {[%emt 0:00:09]} Nxc3 {[%emt 0:00:09]} 7. bxc3 {[%emt 0:00:08]} cxd4 {[%emt 0:00:25]} 8. cxd4 {[%emt 0:00:07]} Bb4+ {[%emt 0:00:07]} 9. Bd2 {[%emt 0:00:06]} Bxd2+ {[%emt 0:00:06]} 10. Qxd2 {[%emt 0:00:06]} O-O {[%emt 0:00:06]} 11. Bc4 {[%emt 0:00:07]} Nd7 {[%emt 0:00:24]} 12. O-O {[%emt 0:00:09]} b6 {[%emt 0:00:49]} 13. a4 {[%emt 0:01:41]} Bb7 {[%emt 0:00:30]} 14. Rfe1 {[%emt 0:01:14]} Rb8 {[%emt 0:01:49]} 15. d5 {[%emt 0:10:23]} Nc5 {[%emt 0:14:52]} 16. Rad1 {[%emt 0:12:52]} exd5 {[%emt 0:10:52]} 17. Bxd5 {[%emt 0:00:53]} Qf6 {[%emt 0:11:02]} 18. Qa2 {[%emt 0:14:46]} h6 {[%emt 0:14:41]} 19. h3 {[%emt 0:13:41]} Rfe8 {[%emt 0:08:03]} 20. e5 {[%emt 0:06:14]} Bxd5 {[%emt 0:02:33]} 21. Rxd5 {[%emt 0:03:38]} Qc6 {[%emt 0:01:39]} 22. a5 {[%emt 0:06:47]} Red8 {[%emt 0:05:24]} 23. Red1 {[%emt 0:04:12]} Rxd5 {[%emt 0:02:17]} 24. Rxd5 {[%emt 0:01:33]} Ne4 {[%emt 0:03:23]} 25. Rd3 {[%emt 0:05:55]} bxa5 {[%emt 0:03:16]} 26. Nd2 {[%emt 0:02:15]} a4 {[%emt 0:08:06]} 27. Nxe4 {[%emt 0:01:03]} Qxe4 {[%emt 0:00:04]} 28. Rd7 {[%emt 0:02:06]} Qe1+ {[%emt 0:01:14]} 29. Kh2 {[%emt 0:00:12]} Qxe5+ {[%emt 0:00:04]} 30. g3 {[%emt 0:00:35]} Qf6 {[%emt 0:01:20]} 31. Qe2 {[%emt 0:01:34]} g6 {[%emt 0:04:12]} 32. Rd2 {[%emt 0:00:55]} a3 {[%emt 0:00:54]} 33. Qe3 {[%emt 0:00:20]} Rb2 {[%emt 0:00:41]} 0-1

[Event "XX Sant Marti Open 2018"]
[Site "Sant Marti"]
[Date "2018.07.13"]
[Round "1"]
[White "Guix Torres, David"]
[Black "Munoz, Miguel"]
[Result "0-1"]
[ECO "A46"]
[WhiteElo "2059"]
[BlackElo "2500"]
[Annotator "RC"]
[PlyCount "72"]
[EventDate "2018.07.13"]
[EventType "swiss"]
[EventCountry "ESP"]
[SourceTitle "playchess.com"]
[Source "ChessBase"]
[SourceQuality "1"]
[TimeControl "5400+30"]

1. d4 {[%emt 0:00:00]} Nf6 {[%emt 0:08:29]} 2. Nf3 {[%emt 0:03:27]} c5 {[%emt 0:00:31]} 3. e3 {[%emt 0:00:15]} g6 {[%emt 0:00:18]} 4. Be2 {[%emt 0:00:16]} Bg7 {[%emt 0:00:24]} 5. O-O {[%emt 0:00:15]} O-O {[%emt 0:00:22]} 6. dxc5 {[%emt 0:00:41]} Qa5 {[%emt 0:06:06]} 7. a3 {[%emt 0:01:18]} Qxc5 {[%emt 0:00:34]} 8. b4 {[%emt 0:00:14]} Qc7 {[%emt 0:00:20]} 9. Bb2 {[%emt 0:00:13]} d5 {[%emt 0:01:36]} 10. Nbd2 {[%emt 0:00:45]} Bg4 {[%emt 0:00:57]} 11. Rc1 {[%emt 0:05:19]} Rd8 {[%emt 0:07:28]} 12. c4 {[%emt 0:11:47]} Nc6 {[%emt 0:08:31]} 13. b5 {[%emt 0:22:32]} Bxf3 {[%emt 0:21:04]} 14. Bxf3 {[%emt 0:00:54]} Ne5 {[%emt 0:00:15]} 15. cxd5 {[%emt 0:00:23]} Nxf3+ {[%emt 0:00:05]} 16. Nxf3 {[%emt 0:09:58]} Qd7 {[%emt 0:03:08]} 17. Qe2 {[%emt 0:10:17]} Qxd5 {[%emt 0:01:19]} 18. Bd4 {[%emt 0:09:32]} Ne4 {[%emt 0:04:26]} 19. Qb2 {[%emt 0:12:48]} Bxd4 {[%emt 0:01:26]} 20. Qxd4 {[%emt 0:01:24]} Qxd4 {[%emt 0:00:26]} 21. Nxd4 {[%emt 0:02:56]} Rac8 {[%emt 0:00:21]} 22. g3 {[%emt 0:00:51]} Nc3 {[%emt 0:00:39]} 23. Rc2 {[%emt 0:03:20]} e5 {[%emt 0:02:10]} 24. Nf3 {[%emt 0:00:09]} Nxb5 {[%emt 0:00:42]} 25. Rb2 {[%emt 0:01:43]} Rd5 {[%emt 0:00:28]} 26. Rfb1 {[%emt 0:01:05]} Nxa3 {[%emt 0:01:00]} 27. Ra1 {[%emt 0:00:12]} Nb5 {[%emt 0:00:06]} 28. Ng5 {[%emt 0:00:53]} a6 {[%emt 0:00:59]} 29. Kg2 {[%emt 0:00:24]} Rc4 {[%emt 0:00:32]} 30. h4 {[%emt 0:00:31]} Kg7 {[%emt 0:02:47]} 31. Nf3 {[%emt 0:00:15]} Rc6 {[%emt 0:01:58]} 32. Ra5 {[%emt 0:00:40]} f6 {[%emt 0:01:39]} 33. Ra1 {[%emt 0:00:34]} Nd6 {[%emt 0:00:15]} 34. Rab1 {[%emt 0:00:21]} b5 {[%emt 0:02:45]} 35. Ra2 {[%emt 0:00:41]} Nc4 {[%emt 0:00:10]} 36. Rc2 {[%emt 0:00:35]} Nxe3+ {[%emt 0:00:07]} 0-1

[Event "XX Sant Marti Open 2018"]
[Site "Sant Marti"]
[Date "2018.07.15"]
[Round "3"]
[White "Martinez Alcantara, Jose Eduardo"]
[Black "Valenzuela Gomez, Fernando"]
[Result "1-0"]
[ECO "B90"]
[WhiteElo "2545"]
[BlackElo "2389"]
[Annotator "ChessBase"]
[PlyCount "109"]
[EventDate "2018.07.13"]
[EventType "swiss"]
[EventCountry "ESP"]
[SourceTitle "playchess.com"]
[Source "ChessBase"]
[SourceQuality "1"]
[TimeControl "5400+30"]

1. e4 {[%emt 0:12:20]} c5 {[%emt 0:05:09]} 2. Nf3 {[%emt 0:00:04]} d6 {[%emt 0:00:26]} 3. d4 {[%emt 0:00:05]} cxd4 {[%emt 0:00:16]} 4. Nxd4 {[%emt 0:00:06]} Nf6 {[%emt 0:00:21]} 5. Nc3 {[%emt 0:00:02]} a6 {[%emt 0:00:35]} 6. f3 {[%emt 0:00:04]} h5 {[%emt 0:00:05]} 7. Be3 {[%emt 0:00:04]} e6 {[%emt 0:00:23]} 8. Qd2 {[%emt 0:03:04]} Be7 {[%emt 0:01:04]} 9. Bc4 {[%emt 0:02:35]} b5 {[%emt 0:05:48]} 10. Bb3 {[%emt 0:00:09]} Bd7 {[%emt 0:00:16]} 11. a4 {[%emt 0:01:50]} Nc6 {[%emt 0:06:15]} 12. axb5 {[%emt 0:05:50]} Nxd4 {[%emt 0:00:36]} 13. Qxd4 {[%emt 0:00:21]} axb5 {[%emt 0:00:27]} 14. O-O {[%emt 0:00:16]} O-O {[%emt 0:10:05]} 15. Qd3 {[%emt 0:03:13]} Rxa1 {[%emt 0:04:59]} 16. Rxa1 {[%emt 0:00:02]} Qb8 {[%emt 0:00:19]} 17. Ne2 {[%emt 0:05:57]} Rd8 {[%emt 0:05:43]} 18. Nf4 {[%emt 0:02:40]} d5 {[%emt 0:08:49]} 19. exd5 {[%emt 0:04:13]} e5 {[%emt 0:12:09]} 20. d6 {[%emt 0:05:55]} Bxd6 {[%emt 0:09:53]} 21. Nd5 {[%emt 0:21:39]} Nxd5 {[%emt 0:00:27]} 22. Bxd5 {[%emt 0:02:39]} e4 {[%emt 0:01:16]} 23. fxe4 {[%emt 0:05:49]} Bxh2+ {[%emt 0:00:59]} 24. Kh1 {[%emt 0:00:01]} Be5 {[%emt 0:11:38]} 25. Qb3 {[%emt 0:02:13]} Qd6 {[%emt 0:04:54]} 26. Bxf7+ {[%emt 0:07:08]} Kh7 {[%emt 0:00:02]} 27. Bg5 {[%emt 0:01:54]} Be6 {[%emt 0:02:50]} 28. Qd3 {[%emt 0:00:39]} Bc4 {[%emt 0:02:44]} 29. Qf3 {[%emt 0:02:18]} Bxf7 {[%emt 0:02:01]} 30. Bxd8 {[%emt 0:00:05]} Bg6 {[%emt 0:01:16]} 31. Rd1 {[%emt 0:01:01]} Qb4 {[%emt 0:00:41]} 32. b3 {[%emt 0:00:43]} Qa3 {[%emt 0:01:18]} 33. Bg5 {[%emt 0:00:46]} Qa8 {[%emt 0:00:26]} 34. Bf4 {[%emt 0:00:44]} Bb2 {[%emt 0:00:27]} 35. Kh2 {[%emt 0:01:46]} Qe8 {[%emt 0:00:13]} 36. Re1 {[%emt 0:00:22]} b4 {[%emt 0:00:50]} 37. Re2 {[%emt 0:00:32]} Qe7 {[%emt 0:00:34]} 38. g3 {[%emt 0:01:07]} Qe6 {[%emt 0:00:37]} 39. Bd2 {[%emt 0:01:40]} Qe7 {[%emt 0:00:59]} 40. c3 {[%emt 0:01:35]} bxc3 {[%emt 0:00:49]} 41. Bxc3 {[%emt 0:00:05]} Bc1 {[%emt 0:00:27]} 42. Bd2 {[%emt 0:00:39]} Ba3 {[%emt 0:00:31]} 43. b4 {[%emt 0:00:42]} Bxb4 {[%emt 0:00:28]} 44. Bxb4 {[%emt 0:00:01]} Qxb4 {[%emt 0:00:07]} 45. e5 {[%emt 0:00:25]} Qe7 {[%emt 0:00:34]} 46. e6 {[%emt 0:00:29]} Be8 {[%emt 0:00:29]} 47. Qe4+ {[%emt 0:00:26]} Kh6 {[%emt 0:00:51]} 48. Qh4 {[%emt 0:00:43]} Qc5 {[%emt 0:00:29]} 49. Qf4+ {[%emt 0:01:56]} Kh7 {[%emt 0:00:04]} 50. e7 {[%emt 0:01:09]} Qb5 {[%emt 0:00:35]} 51. Qe4+ {[%emt 0:00:06]} Kh6 {[%emt 0:00:27]} 52. Rd2 {[%emt 0:00:41]} Qa6 {[%emt 0:01:01]} 53. Rd8 {[%emt 0:01:09]} Qb5 {[%emt 0:00:29]} 54. Rxe8 {[%emt 0:01:19]} Qxe8 {[%emt 0:00:29]} 55. Qf4+ {[%emt 0:00:05]} 1-0

[Event "XX Sant Marti Open 2018"]
[Site "Sant Marti"]
[Date "2018.07.15"]
[Round "3"]
[White "Quesada Perez, Yasser"]
[Black "Gonzales, Jayson"]
[Result "1-0"]
[ECO "B00"]
[WhiteElo "2531"]
[BlackElo "2367"]
[Annotator "ChessBase"]
[PlyCount "115"]
[EventDate "2018.07.13"]
[EventType "swiss"]
[EventCountry "ESP"]
[SourceTitle "playchess.com"]
[Source "ChessBase"]
[SourceQuality "1"]
[TimeControl "5400+30"]

1. e4 d6 {[%emt 0:04:50]} 2. d4 {[%emt 0:00:42]} Nf6 {[%emt 0:00:11]} 3. Bd3 {[%emt 0:00:15]} e5 {[%emt 0:01:00]} 4. c3 {[%emt 0:00:07]} d5 {[%emt 0:01:50]} 5. dxe5 {[%emt 0:00:07]} Nxe4 {[%emt 0:00:02]} 6. Nf3 {[%emt 0:00:09]} Nc6 {[%emt 0:00:26]} 7. O-O {[%emt 0:01:12]} Bg4 {[%emt 0:00:42]} 8. Nbd2 {[%emt 0:00:08]} Nc5 {[%emt 0:01:07]} 9. Bb1 {[%emt 0:00:07]} d4 {[%emt 0:00:38]} 10. h3 {[%emt 0:15:56]} Bh5 {[%emt 0:01:30]} 11. Qe2 {[%emt 0:08:02]} Qd5 {[%emt 0:10:47]} 12. Rd1 {[%emt 0:17:39]} d3 {[%emt 0:09:06]} 13. Qe3 {[%emt 0:02:02]} O-O-O {[%emt 0:00:20]} 14. Re1 {[%emt 0:07:50]} f6 {[%emt 0:04:06]} 15. b4 {[%emt 0:07:10]} Na4 {[%emt 0:03:45]} 16. c4 {[%emt 0:00:02]} Qe6 {[%emt 0:00:32]} 17. a3 {[%emt 0:00:44]} Bg6 {[%emt 0:02:30]} 18. Ba2 {[%emt 0:01:29]} Nc3 {[%emt 0:12:30]} 19. Bb2 {[%emt 0:00:02]} Nxa2 {[%emt 0:01:45]} 20. Rxa2 {[%emt 0:00:06]} Nxe5 {[%emt 0:01:56]} 21. Nxe5 {[%emt 0:02:03]} fxe5 {[%emt 0:00:04]} 22. Qxa7 {[%emt 0:00:09]} Qa6 {[%emt 0:00:29]} 23. Qxa6 {[%emt 0:00:28]} bxa6 {[%emt 0:00:01]} 24. Bxe5 {[%emt 0:00:07]} Rg8 {[%emt 0:00:20]} 25. c5 {[%emt 0:02:49]} Bf7 {[%emt 0:00:24]} 26. Raa1 {[%emt 0:00:22]} g5 {[%emt 0:00:30]} 27. f3 {[%emt 0:05:16]} h5 {[%emt 0:00:35]} 28. g4 {[%emt 0:00:03]} Rd5 {[%emt 0:01:52]} 29. Bc3 {[%emt 0:01:26]} hxg4 {[%emt 0:04:52]} 30. hxg4 {[%emt 0:03:09]} Rg6 {[%emt 0:00:10]} 31. Kf2 {[%emt 0:01:19]} Rd8 {[%emt 0:03:18]} 32. Rad1 {[%emt 0:01:28]} Be8 {[%emt 0:01:27]} 33. Ne4 {[%emt 0:01:59]} Bb5 {[%emt 0:03:41]} 34. Rh1 {[%emt 0:02:15]} Bh6 {[%emt 0:04:20]} 35. Ke3 {[%emt 0:02:56]} Kb7 {[%emt 0:01:27]} 36. Rd2 {[%emt 0:00:25]} Re8 {[%emt 0:01:15]} 37. Rdh2 {[%emt 0:00:50]} Ree6 {[%emt 0:00:15]} 38. Kd2 {[%emt 0:02:20]} Kc6 {[%emt 0:07:31]} 39. Ng3 {[%emt 0:00:24]} Bg7 {[%emt 0:04:01]} 40. Bxg7 {[%emt 0:00:40]} Rxg7 {[%emt 0:00:01]} 41. Rh6 {[%emt 0:04:43]} Rxh6 {[%emt 0:00:12]} 42. Rxh6+ {[%emt 0:00:01]} Kd5 {[%emt 0:00:24]} 43. Nf5 {[%emt 0:04:11]} Rf7 {[%emt 0:00:46]} 44. a4 {[%emt 0:01:51]} Bxa4 {[%emt 0:00:37]} 45. Kxd3 {[%emt 0:01:49]} Bb5+ {[%emt 0:00:02]} 46. Kc3 {[%emt 0:02:02]} Ke5 {[%emt 0:00:07]} 47. Nd4 {[%emt 0:00:26]} Rd7 {[%emt 0:05:21]} 48. Re6+ {[%emt 0:00:15]} Kf4 {[%emt 0:00:13]} 49. Re4+ {[%emt 0:00:52]} Kg3 {[%emt 0:00:08]} 50. Re5 {[%emt 0:00:04]} Kh4 {[%emt 0:00:34]} 51. Rf5 {[%emt 0:01:40]} Bf1 {[%emt 0:03:19]} 52. c6 {[%emt 0:00:32]} Re7 {[%emt 0:01:10]} 53. Kd2 {[%emt 0:00:01]} Bg2 {[%emt 0:03:20]} 54. Rd5 {[%emt 0:00:29]} Rf7 {[%emt 0:00:50]} 55. Rd7 {[%emt 0:00:12]} Rxf3 {[%emt 0:00:24]} 56. Nxf3+ {[%emt 0:00:14]} Bxf3 {[%emt 0:00:02]} 57. Rxc7 {[%emt 0:00:05]} Kxg4 {[%emt 0:00:07]} 58. Ke3 {[%emt 0:00:13]} 1-0

[Event "XX Sant Marti Open 2018"]
[Site "Sant Marti"]
[Date "2018.07.16"]
[Round "4"]
[White "Aguero Jimenez, Luis Lazaro"]
[Black "Martinez Alcantara, Jose Eduardo"]
[Result "1/2-1/2"]
[ECO "B90"]
[WhiteElo "2473"]
[BlackElo "2545"]
[Annotator "RC"]
[PlyCount "55"]
[EventDate "2018.07.13"]
[EventType "swiss"]
[EventCountry "ESP"]
[SourceTitle "playchess.com"]
[Source "ChessBase"]
[SourceQuality "1"]
[TimeControl "5400+30"]

1. e4 {[%emt 0:00:00]} c5 {[%emt 0:00:00]} 2. Nf3 {[%emt 0:00:00]} d6 {[%emt 0:00:00]} 3. d4 {[%emt 0:00:00]} Nf6 {[%emt 0:00:00]} 4. Nc3 {[%emt 0:00:00]} cxd4 {[%emt 0:00:00]} 5. Nxd4 {[%emt 0:00:00]} a6 {[%emt 0:00:06]} 6. a4 {[%emt 0:00:27]} g6 {[%emt 0:00:05]} 7. Be2 {[%emt 0:00:16]} Bg7 {[%emt 0:00:05]} 8. O-O {[%emt 0:00:05]} Nc6 {[%emt 0:00:14]} 9. Be3 {[%emt 0:00:23]} O-O {[%emt 0:00:51]} 10. Kh1 {[%emt 0:02:50]} Nxd4 {[%emt 0:03:50]} 11. Bxd4 {[%emt 0:00:06]} Be6 {[%emt 0:00:03]} 12. f4 {[%emt 0:02:59]} Rc8 {[%emt 0:00:46]} 13. b3 {[%emt 0:01:29]} Qa5 {[%emt 0:09:47]} 14. f5 {[%emt 0:06:35]} Bd7 {[%emt 0:05:31]} 15. Bxf6 {[%emt 0:22:59]} Bxf6 {[%emt 0:00:54]} 16. Nd5 {[%emt 0:00:09]} Bc6 {[%emt 0:02:25]} 17. Nxf6+ {[%emt 0:00:19]} exf6 {[%emt 0:00:02]} 18. fxg6 {[%emt 0:27:22]} hxg6 {[%emt 0:00:12]} 19. Qxd6 {[%emt 0:00:15]} Bxe4 {[%emt 0:01:40]} 20. Qxf6 {[%emt 0:00:06]} Rxc2 {[%emt 0:02:09]} 21. Bf3 {[%emt 0:00:10]} Bxf3 {[%emt 0:06:06]} 22. Rxf3 {[%emt 0:00:50]} Qd2 {[%emt 0:00:31]} 23. Rg1 {[%emt 0:00:29]} Rc1 {[%emt 0:00:36]} 24. Rxc1 {[%emt 0:00:19]} Qxc1+ {[%emt 0:00:07]} 25. Rf1 {[%emt 0:00:00]} Qe3 {[%emt 0:01:45]} 26. Rf3 {[%emt 0:03:10]} Qe1+ {[%emt 0:00:14]} 27. Rf1 {[%emt 0:00:01]} Qe3 {[%emt 0:00:10]} 28. Rf3 {[%emt 0:00:04]} 1/2-1/2